bitfinex/quotes_ETHUSD_20240819
["timestamp","ask_amount","ask_price","bid_price","bid_amount"]
[1724072699704,3.8573,2592.5,2592.0,2.71898]
[1724072699891,3.8573,2592.5,2592.0,2.4718]
[1724072700543,5.5313,2592.5,2592.0,2.4718]
[1724072700990,3.85714,2592.6,2592.2,2.4993]
[1724072701192,3.85734,2592.5,2592.2,2.4993]
[1724072701425,3.85734,2592.5,2591.8,3.2224]
[1724072701426,5.53134,2592.5,2591.9,2.4993]
[1724072701639,5.53134,2592.5,2592.0,0.55]
[1724072702695,3.85714,2592.6,2592.1,2.2644]
[1724072704946,5.531,2592.7,2592.1,2.2644]
[1724072705097,5.531,2592.7,2592.2,0.55]
[1724072705291,3.85713,2592.6,2592.2,0.55]
[1724072706135,4.410423,2592.5,2592.1,2.2644]
[1724072706299,3.85731,2592.5,2592.1,2.2644]
[1724072707299,3.85713,2592.6,2592.1,2.2644]
[1724072707505,3.85648,2593.1,2592.3,2.4739]
[1724072707752,2.4743,2593.2,2592.5,2.4739]
[1724072707753,3.85655,2593.0,2592.5,2.4739]
[1724072708450,3.8564,2593.1,2592.5,2.4739]
[1724072708618,4.795065,2593.1,2592.5,2.4739]
[1724072710500,3.8564,2593.1,2592.5,2.4739]
[1724072712971,3.8564,2593.1,2592.7,2.2904]
[1724072713392,3.85612,2593.3,2592.7,2.2904]
[1724072713686,3.85612,2593.3,2592.6,0.55]
[1724072713687,3.85596,2593.4,2592.8,2.45133001]
[1724072713852,3.85596,2593.4,2592.9,0.245133]
[1724072714053,3.85589,2593.5,2592.8,2.3742]
[1724072714054,3.85609,2593.3,2592.8,2.3742]
[1724072716182,3.85596,2593.4,2592.8,2.3742]
[1724072716394,3.85596,2593.4,2592.8,2.67433286]
[1724072716998,3.85609,2593.3,2592.8,2.67433286]
[1724072718075,3.85624,2593.2,2592.8,2.67433286]
[1724072718274,3.85624,2593.2,2592.8,2.3742]
[1724072719480,3.8561,2593.3,2592.8,2.3742]
[1724072721413,3.85596,2593.4,2592.8,2.3742]
[1724072721570,3.8561,2593.3,2592.8,2.3742]
[1724072721770,3.8561,2593.3,2592.8,2.67433287]
[1724072722913,3.85595,2593.4,2592.8,2.67433287]
[1724072723597,3.85609,2593.3,2592.8,2.67433287]
[1724072723807,3.85609,2593.3,2592.8,2.3742]
[1724072724312,3.8563,2593.2,2592.8,2.3742]
[1724072724676,3.85647,2593.1,2592.9,2.389]
[1724072724893,3.85613,2593.3,2592.9,2.389]
[1724072725113,3.85637,2593.2,2592.9,2.389]
[1724072725819,3.85616,2593.3,2592.9,2.389]
[1724072726119,3.85629,2593.2,2592.9,2.389]
[1724072731335,3.85611,2593.3,2592.9,2.389]
[1724072731542,3.85611,2593.3,2593.0,0.2389]
[1724072731833,3.85611,2593.3,2592.6,0.55]
[1724072731834,3.85611,2593.3,2592.7,2.3742]
[1724072732038,3.85611,2593.3,2592.8,0.55]
[1724072732239,2.4277,2593.9,2592.9,2.45132589]
[1724072732478,3.0,2594.2,2593.3,1.672]
[1724072732479,1.672,2594.2,2593.3,1.672]
[1724072732663,5.52705,2594.0,2593.4,2.4706]
[1724072732976,3.85521,2593.9,2593.4,2.4706]
[1724072733146,7.7102,2594.0,2593.4,2.4706]
[1724072733346,5.52705,2594.0,2593.4,2.4706]
[1724072733552,3.8552,2593.9,2593.4,2.4706]
[1724072733861,5.52739,2593.8,2593.4,2.4706]
[1724072734262,5.52765,2593.6,2593.4,2.4706]
[1724072734462,3.85565,2593.6,2593.2,2.406]
[1724072735682,3.8555,2593.7,2593.2,2.406]
[1724072737197,3.85534,2593.8,2593.2,2.406]
[1724072741602,3.85514,2594.0,2593.2,2.406]
[1724072741761,3.85514,2594.0,2593.4,2.3018]
[1724072744684,3.85484,2594.2,2593.4,2.3018]
[1724072744913,3.85484,2594.2,2593.0,6.93350858]
[1724072744914,3.85484,2594.2,2593.6,2.2786]
[1724072745112,3.85484,2594.2,2593.8,2.2786]
[1724072745414,3.9375805,2594.3,2593.8,2.2786]
[1724072746283,3.85476,2594.2,2593.8,2.2786]
[1724072746483,3.9375105,2594.3,2593.8,2.2786]
[1724072747233,3.85475,2594.2,2593.8,2.2786]
[1724072747377,7.70958,2594.2,2593.8,2.2786]
[1724072747778,3.85475,2594.2,2593.8,2.2786]
[1724072748392,3.8549,2594.1,2593.8,2.2786]
[1724072748585,3.8549,2594.1,2593.3,7.28]
[1724072748586,3.85519,2593.9,2593.6,2.2666]
[1724072748822,3.80541,2593.8,2593.4,2.2666]
[1724072749127,3.80541,2593.8,2593.4,3.13328608]
[1724072749811,3.85557,2593.7,2593.4,3.13328608]
[1724072750377,3.85528,2593.9,2593.4,3.13328608]
[1724072750579,3.85491,2594.1,2593.6,2.294]
[1724072752737,3.85477,2594.2,2593.6,2.294]
[1724072752904,3.85477,2594.2,2593.7,0.33353286]
[1724072754115,3.85477,2594.2,2593.8,2.3168]
[1724072755816,3.85507,2594.0,2593.8,2.3168]
[1724072756024,3.85507,2594.0,2593.3,7.28]
[1724072756025,7.7102,2594.0,2593.6,2.2976]
[1724072756258,7.7102,2594.0,2593.6,2.52736]
[1724072756424,3.8552,2593.9,2593.6,2.2976]
[1724072757250,3.85506,2594.0,2593.6,2.2976]
[1724072758354,3.85499,2594.1,2593.6,2.2976]
[1724072758355,3.85521,2593.9,2593.6,2.2976]
[1724072760755,3.85505,2594.0,2593.6,2.2976]
[1724072761052,3.85497,2594.1,2593.6,2.52736]
[1724072761199,3.85513,2594.0,2593.6,2.52736]
[1724072761404,3.85513,2594.0,2593.6,2.2976]
[1724072762043,3.8552,2593.9,2593.6,2.2976]
[1724072762384,3.85521,2593.9,2593.6,2.2976]
[1724072763422,3.85512,2594.0,2593.6,2.2976]
[1724072763836,3.85533,2593.9,2593.1,2.2518]
[1724072764058,3.85576,2593.6,2593.2,1.80318]
[1724072764340,3.8555,2593.7,2593.2,0.55]
[1724072765652,3.8555,2593.7,2592.6,3.85709]
[1724072765653,3.85603,2593.4,2592.9,2.4654]
[1724072765858,3.8561,2593.3,2592.9,2.4654]
[1724072766351,3.85589,2593.5,2592.9,2.71194]
[1724072766749,3.85566,2593.6,2592.9,2.71194]
[1724072767114,0.848223,2593.6,2592.9,2.4654]
[1724072767467,3.85571,2593.6,2592.9,2.4654]
[1724072768359,3.85571,2593.6,2593.0,0.55]
[1724072770493,3.85561,2593.7,2593.1,2.3164]
[1724072770707,3.85535,2593.8,2593.2,0.83664]
[1724072770998,3.85531,2593.9,2593.3,2.4431]
[1724072771346,3.8548,2594.2,2593.3,2.4431]
[1724072771644,3.8548,2594.2,2593.4,2.9931]
[1724072775665,3.85499,2594.1,2593.4,2.9931]
[1724072777555,3.85506,2594.0,2593.4,2.9931]
[1724072778135,3.8549,2594.1,2593.4,2.9931]
[1724072778336,3.8549,2594.1,2593.5,0.4161738]
[1724072778541,3.8549,2594.1,2593.6,0.55]
[1724072779221,7.70987,2594.1,2593.6,0.55]
[1724072780084,3.85506,2594.0,2593.6,0.55]
[1724072781075,7.71019,2594.0,2593.6,0.55]
[1724072781248,0.771019,2594.0,2593.4,2.4431]
[1724072781567,3.85488,2594.2,2593.4,2.4431]
[1724072781568,2.4177,2594.1,2593.4,2.4431]
[1724072781737,3.85541,2593.8,2593.4,2.4431]
[1724072783271,3.85506,2594.0,2593.4,2.4431]
[1724072783855,3.85492,2594.1,2593.5,0.55]
[1724072784079,3.85492,2594.1,2593.6,2.4001]
[1724072784821,7.70989,2594.1,2593.6,2.4001]
[1724072785029,3.85511,2594.0,2593.6,2.4001]
[1724072785760,7.71025,2594.0,2593.6,2.4001]
[1724072785970,3.85526,2593.9,2593.6,2.4001]
[1724072786137,2.42648356,2594.2,2593.4,2.2777]
[1724072786339,3.85505,2594.0,2593.5,0.55]
[1724072787340,3.85505,2594.0,2593.5,0.98135]
[1724072788096,7.7102,2594.0,2593.5,0.98135]
[1724072788248,4.88668356,2594.2,2593.4,2.2777]
[1724072788455,4.88668356,2594.2,2593.1,7.28]
[1724072788456,3.85565,2593.6,2593.2,2.3195]
[1724072788869,3.8558,2593.5,2593.2,2.3195]
[1724072789110,3.8558,2593.5,2592.9,2.3195]
[1724072789289,3.8558,2593.5,2592.9,4.2865]
[1724072790404,3.85564,2593.6,2593.1,2.3965]
[1724072790569,3.85564,2593.6,2593.2,0.29465]
[1724072790769,3.85564,2593.6,2593.1,2.3965]
[1724072790981,3.85533,2593.9,2593.1,2.3965]
[1724072791212,3.8554,2593.8,2593.3,2.4323]
[1724072791920,3.8555,2593.7,2593.3,2.4323]
[1724072792292,7.71111,2593.7,2593.3,2.4323]
[1724072792495,3.85565,2593.6,2593.3,2.4323]
[1724072793280,3.85552,2593.7,2593.3,2.4323]
[1724072795324,6.28224837,2594.0,2593.3,2.4323]
[1724072795489,3.8552,2593.9,2593.4,0.55]
[1724072796407,3.85536,2593.8,2593.4,0.55]
[1724072801432,3.85521,2593.9,2593.4,0.55]
[1724072801728,3.85521,2593.9,2593.5,2.4421]
[1724072801938,3.85521,2593.9,2593.6,0.24421]
[1724072802139,3.85521,2593.9,2593.5,2.4421]
[1724072803701,3.85536,2593.8,2593.5,2.4421]
[1724072805333,3.85515,2594.0,2593.5,2.4421]
[1724072805527,3.85515,2594.0,2593.7,2.3434]
[1724072806697,3.85513,2594.0,2593.7,2.3434]
[1724072806898,3.85534,2593.8,2593.3,2.38]
[1724072807128,3.85534,2593.8,2593.4,0.8993651]
[1724072808840,3.85521,2593.9,2593.5,2.3937]
[1724072809039,7.71049,2593.9,2593.5,2.3937]
[1724072809334,3.85534,2593.8,2593.5,2.3937]
[1724072809877,2.42705282,2594.2,2593.6,0.55]
[1724072810092,3.85497,2594.1,2593.7,0.29437]
[1724072810287,3.85522,2593.9,2593.5,2.3937]
[1724072811494,3.85522,2593.9,2593.5,3.36107]
[1724072813402,3.85536,2593.8,2593.5,2.3937]
[1724072814939,5.52736,2593.8,2593.5,2.3937]
[1724072815235,3.85564,2593.6,2593.3,2.4036]
[1724072815494,3.85552,2593.7,2593.4,0.55]
[1724072815960,3.85567,2593.6,2593.3,2.4036]
[1724072816162,3.8558,2593.5,2593.3,2.4036]
[1724072816367,3.8558,2593.5,2593.1,9.7723]
[1724072816665,3.8558,2593.5,2593.2,0.55]
[1724072818250,1.672,2593.6,2593.2,0.55]
[1724072818251,5.52767,2593.6,2593.2,0.55]
[1724072818776,3.85567,2593.6,2593.2,0.55]
[1724072818984,3.85567,2593.6,2593.3,1.13503]
[1724072820087,6.28227282,2593.9,2593.4,2.3454]
[1724072820298,3.85534,2593.8,2593.4,2.3454]
[1724072821057,3.85522,2593.9,2593.4,2.748443]
[1724072822353,9.18663785,2594.3,2593.6,2.2783]
[1724072822354,3.85506,2594.0,2593.6,2.2783]
[1724072823364,3.85491,2594.1,2593.6,2.2783]
[1724072823981,3.85506,2594.0,2593.6,2.2783]
[1724072824368,3.85506,2594.0,2593.6,2.59996473]
[1724072825059,7.71021,2594.0,2593.6,2.59996473]
[1724072825258,3.85506,2594.0,2593.6,2.2783]
[1724072825585,3.85526,2593.9,2593.6,2.2783]
[1724072826725,3.85506,2594.0,2593.6,2.2783]
[1724072826726,3.85537,2593.8,2593.6,2.2783]
[1724072826926,3.85522,2593.9,2593.6,2.2783]
[1724072827127,3.85502,2594.1,2593.6,2.56113]
[1724072827444,3.85502,2594.1,2593.8,2.2677]
[1724072829807,2.51180938,2594.3,2593.8,2.65485538]
[1724072829994,0.0829005,2594.3,2593.8,2.577753]
[1724072830342,0.0829005,2594.3,2594.0,2.4704]
[1724072831737,0.0829005,2594.3,2594.2,2.3555]
[1724072831937,0.0829005,2594.3,2594.2,2.9055]
[1724072832531,0.0829005,2594.3,2594.2,9.76025]
[1724072832733,0.0829005,2594.3,2594.2,9.40216266]
[1724072832895,0.0829005,2594.3,2594.2,9.402115]
[1724072833333,0.0829005,2594.3,2594.2,8.06161552]
[1724072834317,0.0829005,2594.3,2594.2,11.91636552]
[1724072834518,0.0829005,2594.3,2594.2,15.77111552]
[1724072835286,5.0,2595.0,2594.6,3.85407]
[1724072835557,5.0,2595.0,2594.9,2.3503]
[1724072835911,5.0,2595.0,2594.9,2.9003]
[1724072836916,5.03575067,2595.0,2594.9,2.9003]
[1724072840229,5.03575067,2595.0,2594.9,0.55]
[1724072840459,5.03575067,2595.0,2594.8,0.55]
[1724072840683,5.03575067,2595.0,2594.8,1.09018]
[1724072846227,5.03575067,2595.0,2594.8,0.55]
[1724072851441,5.03575067,2595.0,2594.9,13.98992]
[1724072851595,5.03575067,2595.0,2594.9,17.53992]
[1724072851922,4.19598171,2595.0,2594.9,52.53992]
[1724072852073,4.19598171,2595.0,2594.9,53.67495]
[1724072852276,4.19598171,2595.0,2594.9,18.67495]
[1724072852603,2.19736562,2595.0,2594.9,18.67495]
[1724072852915,2.19736562,2595.0,2594.9,53.67495]
[1724072853789,2.19736562,2595.0,2594.9,18.67495]
[1724072856811,2.19736562,2595.0,2594.9,6.95353]
[1724072857169,2.19736562,2595.0,2594.9,10.80724]
[1724072857405,2.19736562,2595.0,2594.9,14.66095]
[1724072857619,2.19736562,2595.0,2594.9,18.67495]
[1724072858711,2.19736562,2595.0,2594.9,14.82124]
[1724072858919,2.19736562,2595.0,2594.9,10.96753]
[1724072859114,2.19736562,2595.0,2594.9,14.82124]
[1724072859616,2.19736562,2595.0,2594.9,18.67495]
[1724072860758,2.19736562,2595.0,2594.9,14.82124]
[1724072861742,2.19736562,2595.0,2594.9,18.67495]
[1724072862553,2.19736562,2595.0,2594.9,22.52866]
[1724072863031,2.19736562,2595.0,2594.9,18.67495]
[1724072864755,2.19736562,2595.0,2594.9,53.67495]
[1724072866041,2.19736562,2595.0,2594.9,57.52866]
[1724072866251,2.19736562,2595.0,2594.9,53.67495]
[1724072866777,2.19736562,2595.0,2594.9,57.52866]
[1724072870536,2.19736562,2595.0,2594.9,55.18366]
[1724072872340,2.19736562,2595.0,2594.9,55.37702481]
[1724072872666,0.76811545,2595.0,2594.9,55.37702481]
[1724072873032,0.76811545,2595.0,2594.9,55.18366]
[1724072874926,0.76811545,2595.0,2594.9,56.52357641]
[1724072875131,0.76811545,2595.0,2594.9,55.18366]
[1724072875353,0.76811545,2595.0,2594.9,58.53349105]
[1724072875584,0.76811545,2595.0,2594.9,56.52359242]
[1724072875996,0.76811545,2595.0,2594.9,51.00088242]
[1724072876203,0.76811545,2595.0,2594.9,2.80403]
[1724072876568,0.76811545,2595.0,2594.9,1.669]
[1724072877606,0.76811545,2595.0,2594.6,3.85406]
[1724072877607,3.11161545,2595.0,2594.8,1.669]
[1724072877763,3.14730179,2595.0,2594.8,1.669]
[1724072877959,3.14730179,2595.0,2594.8,2.606718]
[1724072878160,0.76811545,2595.0,2594.9,3.85371]
[1724072878672,0.76811545,2595.0,2594.9,6.85371]
[1724072879204,0.76811545,2595.0,2594.9,7.40371]
[1724072880696,0.76811545,2595.0,2594.9,3.55]
[1724072880902,0.76811545,2595.0,2594.9,0.55]
[1724072881060,0.76811545,2595.0,2594.9,1.290399]
[1724072881464,0.76811545,2595.0,2594.9,8.997819]
[1724072881762,0.76811545,2595.0,2594.9,11.997819]
[1724072882360,0.76811545,2595.0,2594.9,8.144109]
[1724072882717,0.76811545,2595.0,2594.9,4.290399]
[1724072883447,0.76811545,2595.0,2594.9,8.144109]
[1724072884006,0.76811545,2595.0,2594.9,3.740399]
[1724072884211,2.3833,2594.9,2594.6,3.0]
[1724072884448,2.3833,2594.9,2594.6,6.85415]
[1724072884618,2.3833,2594.9,2594.7,3.29114552]
[1724072884819,2.3833,2594.9,2594.8,3.0]
[1724072885906,2.3833,2594.9,2594.8,3.55]
[1724072886360,2.3833,2594.9,2594.8,3.0]
[1724072886524,2.3833,2594.9,2594.5,3.0]
[1724072886737,2.3833,2594.9,2594.5,4.113443]
[1724072887839,2.3833,2594.9,2594.5,3.0]
[1724072888242,2.3833,2594.9,2594.4,7.28]
[1724072888441,0.76811545,2595.0,2594.2,12.39]
[1724072888442,2.3098,2594.7,2594.2,12.39]
[1724072888637,2.3098,2594.7,2594.1,7.28]
[1724072888927,2.3098,2594.7,2594.1,16.04579633]
[1724072889445,2.3098,2594.7,2594.1,16.04588633]
[1724072890083,2.3098,2594.7,2594.2,3.55]
[1724072890290,2.3098,2594.7,2594.2,7.40463]
[1724072890598,3.13051545,2595.0,2594.6,3.85415]
[1724072890813,3.13051545,2595.0,2594.7,0.55]
[1724072891393,3.13051545,2595.0,2594.7,3.55]
[1724072891710,3.13051545,2595.0,2594.8,0.740408]
[1724072891851,3.13051545,2595.0,2594.9,0.55]
[1724072892299,3.16531467,2595.0,2594.8,0.55]
[1724072892757,3.16531467,2595.0,2594.6,0.55]
[1724072892959,3.16531467,2595.0,2594.6,1.235434]
[1724072893155,3.13051545,2595.0,2594.6,1.235434]
[1724072893353,3.13051545,2595.0,2594.6,0.55]
[1724072893672,2.4563,2594.9,2594.4,3.55]
[1724072893871,2.4563,2594.9,2594.4,0.55]
[1724072894072,2.4563,2594.9,2594.4,1.81925305]
[1724072894288,2.4563,2594.9,2594.4,4.81925305]
[1724072895109,2.4563,2594.9,2594.4,8.67370305]
[1724072896233,2.4563,2594.9,2594.6,3.85408]
[1724072896390,0.76811545,2595.0,2594.7,3.55]
[1724072896593,0.76811545,2595.0,2594.7,3.935408]
[1724072897215,0.03490327,2594.9,2594.7,3.935408]
[1724072897483,0.76811545,2595.0,2594.7,3.935408]
[1724072898237,0.76811545,2595.0,2594.8,3.85378]
[1724072898408,0.76811545,2595.0,2594.9,1.3289188]
[1724072899556,3.06391545,2595.0,2594.9,0.55]
[1724072899705,3.06391545,2595.0,2594.8,0.55]
[1724072900046,3.06391545,2595.0,2594.9,3.85371]
[1724072900244,3.06391545,2595.0,2594.9,4.40371]
[1724072901118,3.06391545,2595.0,2594.9,0.55]
[1724072901789,3.06391545,2595.0,2594.9,4.40371]
[1724072902140,3.06391545,2595.0,2594.9,5.5680048]
[1724072902141,0.76811545,2595.0,2594.9,5.5680048]
[1724072902610,0.76811545,2595.0,2594.9,9.4217148]
[1724072902943,0.76811545,2595.0,2594.9,12.4217148]
[1724072903541,0.76811545,2595.0,2594.9,22.6253248]
[1724072903705,2.2532,2596.4,2595.9,3.85216]
[1724072903904,2.2532,2596.4,2596.0,0.55]
[1724072904237,0.03489774,2596.3,2596.0,0.55]
[1724072904595,2.2532,2596.4,2596.0,0.55]
[1724072904906,2.2532,2596.4,2596.0,4.40206]
[1724072905222,0.03489774,2596.3,2596.1,3.85191]
[1724072905632,2.2532,2596.4,2596.1,3.85191]
[1724072905836,2.2532,2596.4,2596.0,0.55]
[1724072905837,0.03489774,2596.2,2596.0,0.55]
[1724072906129,2.2532,2596.4,2596.0,0.55]
[1724072906330,0.03489774,2596.3,2596.0,0.55]
[1724072906597,2.2532,2596.4,2596.0,0.55]
[1724072906734,0.03489774,2596.2,2596.0,0.55]
[1724072906939,2.2532,2596.4,2596.0,0.55]
[1724072907135,0.03489774,2596.1,2596.0,0.55]
[1724072907338,2.3133,2596.0,2595.9,0.55]
[1724072907883,2.3133,2596.0,2595.6,14.13266]
[1724072908033,2.3133,2596.0,2595.7,0.55]
[1724072908362,2.3133,2596.0,2595.7,4.40252]
[1724072909142,2.3133,2596.0,2595.8,3.8523]
[1724072909345,2.3133,2596.0,2595.7,8.25496]
[1724072909549,2.3133,2596.0,2595.8,3.85236]
[1724072910358,2.3133,2596.0,2595.9,3.85222]
[1724072911584,2.4059,2596.4,2596.1,3.85192]
[1724072911783,0.03489774,2596.0,2595.9,7.70437]
[1724072911951,2.4059,2596.0,2595.9,8.25437]
[1724072912590,2.4059,2596.0,2595.9,4.40222]
[1724072913162,2.4059,2596.0,2595.9,8.25444]
[1724072913670,2.4059,2596.0,2595.9,4.40222]
[1724072914063,2.4059,2596.0,2595.9,3.85222]
[1724072914900,2.4059,2596.0,2595.8,3.85226]
[1724072915207,2.4059,2596.0,2595.7,3.85251]
[1724072915353,2.4059,2596.0,2595.6,3.85257]
[1724072915550,2.4059,2596.0,2595.8,3.85237]
[1724072916054,2.4059,2596.0,2595.8,3.8523]
[1724072916254,2.4059,2596.0,2595.8,3.85229]
[1724072916904,2.4059,2596.0,2595.8,7.7046]
[1724072917209,2.4059,2596.0,2595.8,3.85229]
[1724072918677,2.4059,2596.0,2595.8,7.70457]
[1724072918879,2.4059,2596.0,2595.8,3.85228]
[1724072919278,2.4059,2596.0,2595.8,7.70456]
[1724072919696,2.4059,2596.0,2595.9,3.85222]
[1724072920100,2.2505,2596.2,2596.1,3.8519]
[1724072920417,2.2505,2596.2,2596.1,4.4019]
[1724072920706,0.86014708,2596.2,2596.0,3.85197]
[1724072920867,0.86014708,2596.2,2595.6,3.85265]
[1724072921158,0.86014708,2596.2,2596.1,3.85193]
[1724072923135,0.86014708,2596.2,2595.9,3.85221]
[1724072923334,0.86014708,2596.2,2595.7,3.8525]
[1724072923536,0.86014708,2596.2,2595.8,3.85231]
[1724072923758,8.0413999,2596.9,2595.7,3.8525]
[1724072923759,2.4545,2596.6,2595.7,3.8525]
[1724072924052,2.4545,2596.0,2595.7,3.8525]
[1724072924618,2.4545,2596.0,2595.9,3.85222]
[1724072925161,2.4545,2596.0,2595.8,3.8523]
[1724072925463,2.69995,2596.0,2595.9,3.85222]
[1724072926218,2.4545,2596.0,2595.9,3.85222]
[1724072928268,2.2871,2596.8,2596.0,3.852]
[1724072928470,2.68487599,2596.7,2596.0,3.852]
[1724072928777,2.68487599,2596.7,2595.6,3.85267]
[1724072928778,2.4436,2596.7,2596.1,3.85192]
[1724072929152,2.4436,2596.7,2595.9,3.8521]
[1724072929355,2.68796,2596.6,2596.1,3.85193]
[1724072929568,2.4436,2596.6,2596.1,3.85193]
[1724072931384,2.4436,2596.6,2596.2,3.85171]
[1724072931728,2.4436,2596.6,2596.3,3.85154]
[1724072931930,2.4436,2596.6,2596.2,3.85176]
[1724072932323,2.68796,2596.6,2595.9,3.85221]
[1724072932558,2.68796,2596.6,2595.9,3.85216]
[1724072932771,2.68796,2596.6,2595.9,3.85212]
[1724072932942,0.03499903,2596.5,2595.9,7.70427]
[1724072933135,2.68796,2596.6,2595.9,3.85212]
[1724072934278,0.1256599,2596.9,2595.8,3.8523]
[1724072934279,2.332,2596.4,2595.8,3.8523]
[1724072934945,2.332,2596.4,2595.8,7.7046]
[1724072935143,2.332,2596.4,2595.9,3.85221]
[1724072935543,2.332,2596.4,2596.0,3.85207]
[1724072936181,2.332,2596.4,2595.9,3.85214]
[1724072936387,2.332,2596.4,2596.0,3.85207]
[1724072936689,2.332,2596.4,2596.0,7.70407]
[1724072936981,2.332,2596.4,2596.1,3.85192]
[1724072937568,2.332,2596.4,2596.0,3.85205]
[1724072937789,2.332,2596.4,2596.1,3.85192]
[1724072937949,2.332,2596.4,2596.2,3.85166]
[1724072938347,2.332,2596.4,2596.3,3.85163]
[1724072938645,0.1256599,2596.9,2596.5,3.85121]
[1724072938844,0.1256599,2596.9,2596.4,7.70282]
[1724072939075,0.1256599,2596.9,2596.4,3.85141]
[1724072939285,0.1256599,2596.9,2596.2,13.63009]
[1724072939286,0.37198589,2596.9,2596.2,11.13169]
[1724072939528,2.3552,2596.8,2596.2,11.13169]
[1724072939643,2.3552,2596.8,2596.2,7.28]
[1724072941765,2.3552,2596.8,2596.2,11.13176]
[1724072942161,2.3552,2596.8,2596.2,7.28]
[1724072942391,2.3552,2596.8,2596.2,11.13177]
[1724072942559,2.3552,2596.8,2596.2,11.13176]
[1724072942763,2.3552,2596.8,2596.2,7.28]
[1724072943077,2.3552,2596.8,2596.2,3.85177]
[1724072943291,2.3552,2596.8,2596.3,3.85162]
[1724072943496,2.3552,2596.8,2596.2,5.0160548]
[1724072943710,2.3552,2596.8,2596.2,1.1642948]
[1724072943896,2.3552,2596.8,2596.2,5.0159648]
[1724072944221,2.3552,2596.8,2596.2,1.1642948]
[1724072944607,2.3552,2596.8,2596.5,1.668]
[1724072946887,0.03481246,2596.7,2596.5,1.668]
[1724072947084,2.3552,2596.8,2596.5,1.668]
[1724072950337,0.03530196,2596.7,2596.5,1.668]
[1724072950745,2.3552,2596.8,2596.5,1.668]
[1724072952695,2.60328599,2596.8,2595.9,2.4214]
[1724072952845,2.3544,2596.6,2595.6,0.80132495]
[1724072953045,2.3544,2596.6,2595.9,1.668]
[1724072953374,2.4084,2596.5,2595.9,1.668]
[1724072953543,2.4084,2596.3,2595.9,1.668]
[1724072953744,2.4084,2596.3,2595.1,10.26839431]
[1724072953948,2.2776,2596.1,2595.6,1.668]
[1724072954445,2.2776,2596.1,2595.2,35.0]
[1724072954645,2.2776,2595.9,2595.2,35.0]
[1724072955052,2.2776,2595.9,2595.1,4.006]
[1724072955290,0.03503273,2595.8,2595.1,4.006]
[1724072955462,0.03503273,2595.8,2595.2,35.0]
[1724072955809,2.2776,2595.9,2595.2,37.3643]
[1724072956594,2.2689,2596.2,2595.7,3.85251]
[1724072956796,2.2689,2596.6,2595.8,3.85227]
[1724072956964,2.2689,2596.6,2596.0,3.85207]
[1724072957168,2.2689,2596.6,2596.0,38.85199]
[1724072957561,2.2689,2596.6,2596.1,3.85192]
[1724072957748,2.2689,2596.6,2596.0,45.1205]
[1724072958266,2.2689,2596.6,2596.1,3.8519]
[1724072958495,2.2689,2596.6,2596.1,3.85184]
[1724072958697,2.2689,2596.6,2596.0,6.2685]
[1724072959007,2.2689,2596.6,2596.0,7.280561]
[1724072960578,2.2689,2596.6,2596.0,11.132571]
[1724072961336,2.2689,2596.6,2596.0,7.280561]
[1724072961694,2.2689,2596.6,2596.0,11.132621]
[1724072962222,2.2689,2596.6,2596.0,7.280561]
[1724072962726,2.2689,2596.6,2596.1,3.8519]
[1724072962908,2.2689,2596.6,2596.0,7.280561]
[1724072963079,2.2689,2596.6,2596.0,11.132631]
[1724072963626,2.5788599,2596.9,2596.2,3.85165]
[1724072964323,2.5788599,2596.9,2596.3,38.85159]
[1724072964524,2.5788599,2596.9,2596.3,35.0]
[1724072965821,2.5788599,2596.9,2596.1,5.3503971]
[1724072966020,2.83674589,2596.9,2596.1,5.3503971]
[1724072966515,2.83674589,2596.9,2596.2,38.85176]
[1724072967724,2.83674589,2596.9,2596.1,1.4984771]
[1724072967930,2.83674589,2596.9,2595.9,3.85212]
[1724072968078,2.83674589,2596.9,2596.0,3.85206]
[1724072968477,2.83674589,2596.9,2596.0,3.85201]
[1724072969514,2.83674589,2596.9,2596.0,7.70401]
[1724072969723,2.83674589,2596.9,2596.0,3.852]
[1724072969918,2.4534,2596.7,2596.0,3.85198]
[1724072970121,2.4534,2596.7,2595.4,11.01551495]
[1724072970288,2.72590746,2596.6,2595.8,3.85237]
[1724072970488,2.4522,2596.6,2595.9,3.8521]
[1724072970723,2.4522,2596.6,2595.8,3.85229]
[1724072970945,0.24522,2596.5,2595.9,3.85212]
[1724072971112,0.24522,2596.5,2596.0,3.85205]
[1724072972071,0.24522,2596.5,2595.8,2.3982]
[1724072974654,0.24522,2596.5,2595.6,2.2931]
[1724072974857,2.2766,2596.4,2595.6,2.2931]
[1724072975510,2.2766,2596.4,2595.8,3.85235]
[1724072975712,2.2766,2596.4,2595.9,3.85215]
[1724072976513,2.2766,2596.4,2595.6,2.2931]
[1724072977790,2.2766,2596.4,2595.6,9.99844]
[1724072978090,2.2766,2596.4,2595.6,11.83670378]
[1724072978250,2.2766,2596.4,2595.6,7.98403378]
[1724072978449,2.2766,2596.4,2595.6,11.83663378]
[1724072978645,2.2766,2596.4,2595.8,3.85229]
[1724072979293,2.2766,2596.4,2595.7,3.85252]
[1724072979294,2.2766,2596.4,2595.9,3.85221]
[1724072980296,2.2766,2596.4,2595.9,3.85216]
[1724072980672,2.2766,2596.4,2595.8,3.85235]
[1724072980868,2.2766,2596.4,2595.7,8.95681638]
[1724072981402,2.2766,2596.4,2595.9,3.85222]
[1724072981696,2.2766,2596.4,2595.8,1.30882602]
[1724072981896,2.2766,2596.4,2595.9,3.85221]